[Event "Masterklassen 2025"]
[Site "Uppsala, Sweden"]
[Date "2025.07.01"]
[Round "4.7"]
[White "Hagevi, Vidar"]
[Black "Wakeham, Daniel"]
[Result "1-0"]
[TimeControl "90 min for 40 move + 30 min with an increment of 30 sec starting move 1"]
[WhiteFideId "1767526"]
[BlackFideId "1705482"]
[WhiteElo "2139"]
[BlackElo "2045"]

1. d4 {[%clk 01:30:57]} {[%emt 00:00:02]} Nf6 {[%clk 01:30:10]} {[%emt
00:00:50]} 2. c4 {[%clk 01:31:19]} {[%emt 00:00:09]} e6 {[%clk 01:30:28]}
{[%emt 00:00:12]} 3. Nf3 {[%clk 01:30:46]} {[%emt 00:01:03]} b6 {[%clk
01:30:32]} {[%emt 00:00:26]} 4. g3 {[%clk 01:30:56]} {[%emt 00:00:20]} Bb7
{[%clk 01:30:47]} {[%emt 00:00:15]} 5. Bg2 {[%clk 01:31:16]} {[%emt 00:00:10]}
Be7 {[%clk 01:31:02]} {[%emt 00:00:14]} 6. O-O {[%clk 01:31:35]} {[%emt
00:00:10]} O-O {[%clk 01:31:21]} {[%emt 00:00:14]} 7. Re1 {[%clk 01:31:29]}
{[%emt 00:00:34]} d6 {[%clk 01:18:12]} {[%emt 00:13:40]} 8. Nc3 {[%clk
01:29:48]} {[%emt 00:02:10]} Ne4 {[%clk 01:04:16]} {[%emt 00:14:27]} 9. Qc2
{[%clk 01:28:07]} {[%emt 00:02:10]} f5 {[%clk 01:03:37]} {[%emt 00:01:10]} 10.
Nd2 {[%clk 01:22:13]} {[%emt 00:06:23]} d5 {[%clk 01:02:54]} {[%emt 00:01:13]}
11. Ndxe4 {[%clk 01:18:00]} {[%emt 00:04:43]} fxe4 {[%clk 01:01:57]} {[%emt
00:01:28]} 12. Bf4 {[%clk 01:16:24]} {[%emt 00:02:06]} Nc6 {[%clk 01:01:49]}
{[%emt 00:00:38]} 13. Red1 {[%clk 01:10:32]} {[%emt 00:06:21]} Bf6 {[%clk
00:54:39]} {[%emt 00:07:40]} 14. e3 {[%clk 01:03:32]} {[%emt 00:07:31]} Nb4
{[%clk 00:41:28]} {[%emt 00:13:42]} 15. Qb3 {[%clk 01:02:12]} {[%emt 00:01:48]}
Nd3 {[%clk 00:41:37]} {[%emt 00:00:22]} 16. cxd5 {[%clk 00:52:30]} {[%emt
00:10:12]} Nxf4 {[%clk 00:37:58]} {[%emt 00:04:08]} 17. gxf4 {[%clk 00:50:04]}
{[%emt 00:02:56]} exd5 {[%clk 00:33:39]} {[%emt 00:04:50]} 18. Nxe4 {[%clk
00:48:49]} {[%emt 00:01:44]} Be7 {[%clk 00:32:40]} {[%emt 00:01:29]} 19. Rac1
{[%clk 00:45:06]} {[%emt 00:04:12]} c6 {[%clk 00:31:44]} {[%emt 00:01:29]} 20.
Ng3 {[%clk 00:44:18]} {[%emt 00:01:16]} Bd6 {[%clk 00:27:05]} {[%emt 00:05:09]}
21. a4 {[%clk 00:41:43]} {[%emt 00:03:05]} Kh8 {[%clk 00:24:21]} {[%emt
00:03:15]} 22. a5 {[%clk 00:39:50]} {[%emt 00:02:23]} Rc8 {[%clk 00:20:17]}
{[%emt 00:04:35]} 23. Bh3 {[%clk 00:31:39]} {[%emt 00:08:38]} Rb8 {[%clk
00:20:20]} {[%emt 00:00:29]} 24. a6 {[%clk 00:23:56]} {[%emt 00:08:13]} Bc8
{[%clk 00:20:32]} {[%emt 00:00:18]} 25. Bg2 {[%clk 00:22:15]} {[%emt 00:02:09]}
Bd7 {[%clk 00:18:12]} {[%emt 00:02:52]} 26. Qd3 {[%clk 00:18:58]} {[%emt
00:03:46]} b5 {[%clk 00:16:57]} {[%emt 00:01:46]} 27. Nf1 {[%clk 00:17:49]}
{[%emt 00:01:38]} Rb6 {[%clk 00:17:04]} {[%emt 00:00:23]} 28. Nd2 {[%clk
00:17:42]} {[%emt 00:00:37]} g5 {[%clk 00:16:28]} {[%emt 00:01:07]} 29. e4
{[%clk 00:16:04]} {[%emt 00:02:08]} Bxf4 {[%clk 00:14:42]} {[%emt 00:02:16]} 30.
exd5 {[%clk 00:13:28]} {[%emt 00:03:05]} cxd5 {[%clk 00:14:41]} {[%emt
00:00:31]} 31. Rc5 {[%clk 00:13:26]} {[%emt 00:00:32]} Qe8 {[%clk 00:10:59]}
{[%emt 00:04:13]} 32. Nf1 {[%clk 00:10:19]} {[%emt 00:03:35]} Rxa6 {[%emt
00:04:18]} 33. Rxd5 {[%clk 00:09:12]} {[%emt 00:01:36]} Bc6 {[%clk 00:06:51]}
{[%emt 00:00:53]} 34. Rc5 {[%clk 00:09:29]} {[%emt 00:00:13]} Bxg2 {[%clk
00:07:13]} {[%emt 00:00:08]} 35. Kxg2 {[%clk 00:09:44]} {[%emt 00:00:14]} Rb6
{[%clk 00:05:45]} {[%emt 00:01:59]} 36. Ng3 {[%clk 00:08:35]} {[%emt 00:01:39]}
a6 {[%clk 00:05:21]} {[%emt 00:00:54]} 37. b4 {[%clk 00:06:34]} {[%emt
00:02:30]} Rbf6 {[%clk 00:04:03]} {[%emt 00:01:49]} 38. Rc2 {[%clk 00:05:49]}
{[%emt 00:01:13]} Bd6 {[%clk 00:03:24]} {[%emt 00:01:10]} 39. d5 {[%clk
00:04:27]} {[%emt 00:01:52]} Kg8 {[%clk 00:02:16]} {[%emt 00:01:39]} 40. Ne4
{[%clk 00:03:31]} {[%emt 00:01:26]} Rh6 {[%clk 00:01:52]} {[%emt 00:00:54]} 41.
Nxd6 {[%clk 00:01:01]} {[%emt 00:03:00]} Rxd6 {[%clk 00:02:08]} {[%emt
00:00:15]} 42. Rc7 {[%clk 00:26:06]} {[%emt 00:05:23]} Rf7 {[%clk 00:30:05]}
{[%emt 00:02:35]} 43. Rdc1 {[%clk 00:24:51]} {[%emt 00:01:42]} Kg7 {[%clk
00:18:29]} {[%emt 00:12:08]} 44. Qd4+ {[%clk 00:22:53]} {[%emt 00:02:27]} Kg6
{[%clk 00:18:15]} {[%emt 00:00:44]} 45. R1c6 {[%clk 00:16:07]} {[%emt
00:07:15]} Rdf6 {[%clk 00:10:10]} {[%emt 00:08:36]} 46. Rxf6+ {[%clk 00:12:14]}
{[%emt 00:04:23]} Rxf6 {[%clk 00:10:32]} {[%emt 00:00:09]} 47. Qd3+ {[%clk
00:12:24]} {[%emt 00:00:18]} Kh5 {[%clk 00:08:53]} {[%emt 00:02:11]} 48. Qh3+
{[%clk 00:12:35]} {[%emt 00:00:18]} 1-0

[Event "Masterklassen 2025"]
[Site "Uppsala, Sweden"]
[Date "2025.07.01"]
[Round "4.8"]
[White "Karde, Douglas"]
[Black "Mashhadi, Peyman"]
[Result "0-1"]
[TimeControl "90 min for 40 move + 30 min with an increment of 30 sec starting move 1"]
[WhiteFideId "1761498"]
[BlackFideId "1768581"]
[WhiteElo "2064"]
[BlackElo "2132"]

1. e4 {[%clk 01:30:57]} {[%emt 00:00:02]} e6 {[%clk 01:30:47]} {[%emt
00:00:12]} 2. d3 {[%clk 01:31:17]} {[%emt 00:00:11]} d5 {[%clk 01:30:55]}
{[%emt 00:00:22]} 3. Nd2 {[%clk 01:31:38]} {[%emt 00:00:09]} Nf6 {[%clk
01:31:02]} {[%emt 00:00:22]} 4. Ngf3 {[%clk 01:31:58]} {[%emt 00:00:11]} Be7
{[%clk 01:31:00]} {[%emt 00:00:30]} 5. g3 {[%clk 01:32:10]} {[%emt 00:00:20]}
O-O {[%clk 01:31:09]} {[%emt 00:00:21]} 6. Bg2 {[%clk 01:32:29]} {[%emt
00:00:11]} c5 {[%clk 01:31:15]} {[%emt 00:00:23]} 7. O-O {[%clk 01:32:40]}
{[%emt 00:00:20]} Nc6 {[%clk 01:31:09]} {[%emt 00:00:34]} 8. e5 {[%clk
01:30:32]} {[%emt 00:02:40]} Nd7 {[%clk 01:31:22]} {[%emt 00:00:16]} 9. Re1
{[%clk 01:30:57]} {[%emt 00:00:06]} b5 {[%clk 01:30:52]} {[%emt 00:01:00]} 10.
a4 {[%clk 01:28:46]} {[%emt 00:02:41]} b4 {[%clk 01:28:42]} {[%emt 00:02:40]}
11. Nf1 {[%clk 01:24:22]} {[%emt 00:04:55]} Re8 {[%clk 01:26:04]} {[%emt
00:03:07]} 12. h4 {[%clk 01:20:29]} {[%emt 00:04:23]} Ba6 {[%clk 01:22:12]}
{[%emt 00:04:22]} 13. h5 {[%clk 01:13:44]} {[%emt 00:07:16]} h6 {[%clk
01:20:36]} {[%emt 00:02:05]} 14. N1h2 {[%clk 01:11:09]} {[%emt 00:03:06]} Rc8
{[%clk 01:19:20]} {[%emt 00:01:44]} 15. Ng4 {[%clk 01:09:48]} {[%emt 00:01:53]}
Bf8 {[%clk 01:18:46]} {[%emt 00:01:01]} 16. Nh4 {[%clk 01:03:28]} {[%emt
00:06:52]} Nd4 {[%clk 01:15:42]} {[%emt 00:03:34]} 17. c3 {[%clk 00:54:49]}
{[%emt 00:09:10]} bxc3 {[%clk 01:13:34]} {[%emt 00:02:37]} 18. bxc3 {[%clk
00:53:51]} {[%emt 00:01:28]} Nf5 {[%clk 01:12:52]} {[%emt 00:01:11]} 19. Nxf5
{[%clk 00:44:05]} {[%emt 00:10:16]} exf5 {[%clk 01:13:04]} {[%emt 00:00:18]} 20.
Ne3 {[%clk 00:44:06]} {[%emt 00:00:30]} Nxe5 {[%clk 01:11:46]} {[%emt
00:01:48]} 21. Nxd5 {[%clk 00:40:08]} {[%emt 00:04:29]} Nxd3 {[%clk 01:09:16]}
{[%emt 00:02:59]} 22. Rxe8 {[%clk 00:40:33]} {[%emt 00:00:05]} Qxe8 {[%clk
01:09:29]} {[%emt 00:00:17]} 23. Bxh6 {[%clk 00:40:50]} {[%emt 00:00:13]} Qe5
{[%clk 01:02:13]} {[%emt 00:07:45]} 24. Bf4 {[%clk 00:31:51]} {[%emt 00:09:29]}
Nxf4 {[%clk 01:02:12]} {[%emt 00:00:31]} 25. Nxf4 {[%clk 00:32:16]} {[%emt
00:00:05]} Qxc3 {[%clk 00:57:32]} {[%emt 00:05:10]} 26. Bd5 {[%clk 00:29:54]}
{[%emt 00:02:53]} Qf6 {[%clk 00:51:53]} {[%emt 00:06:07]} 27. Rc1 {[%clk
00:24:39]} {[%emt 00:05:47]} c4 {[%clk 00:49:14]} {[%emt 00:03:09]} 28. Qe2
{[%clk 00:22:01]} {[%emt 00:03:08]} Ba3 {[%clk 00:43:16]} {[%emt 00:06:28]} 29.
Re1 {[%clk 00:19:55]} {[%emt 00:02:37]} Bb4 {[%clk 00:42:35]} {[%emt 00:01:10]}
30. Rb1 {[%clk 00:19:32]} {[%emt 00:00:54]} c3 {[%clk 00:39:16]} 31. Qc2 {[%clk
00:19:50]} {[%emt 00:04:00]} Ba3 {[%clk 00:36:08]} 32. Ng6 {[%clk 00:19:16]}
{[%emt 00:04:42]} Rd8 {[%emt 00:06:31]} 33. Re1 {[%clk 00:15:05]} {[%emt
00:03:09]} Kh7 {[%clk 00:28:27]} {[%emt 00:03:41]} 34. Nf4 {[%clk 00:11:24]}
{[%emt 00:04:11]} Bd6 {[%clk 00:27:37]} {[%emt 00:01:21]} 35. Nh3 {[%emt
00:02:03]} Kh8 {[%clk 00:25:47]} {[%emt 00:02:12]} 36. Bxf7 {[%clk 00:08:40]}
{[%emt 00:01:49]} Qxf7 {[%emt 00:03:12]} 37. h6 {[%clk 00:03:24]} {[%emt
00:04:55]} Qf6 {[%emt 00:01:32]} 0-1

[Event "Masterklassen 2025"]
[Site "Uppsala, Sweden"]
[Date "2025.07.01"]
[Round "4.9"]
[White "Eklund, Joel"]
[Black "Granath, Jonas"]
[Result "1/2-1/2"]
[TimeControl "90 min for 40 move + 30 min with an increment of 30 sec starting move 1"]
[WhiteFideId "1705288"]
[BlackFideId "1761013"]
[WhiteElo "2194"]
[BlackElo "2008"]

1. c4 {[%clk 01:30:56]} {[%emt 00:00:03]} e6 {[%clk 01:23:03]} {[%emt
00:07:58]} 2. g3 {[%clk 01:31:02]} {[%emt 00:00:24]} d5 {[%clk 01:23:26]}
{[%emt 00:00:07]} 3. Bg2 {[%clk 01:31:17]} {[%emt 00:00:14]} dxc4 {[%clk
01:23:45]} {[%emt 00:00:12]} 4. Nf3 {[%clk 01:31:32]} {[%emt 00:00:15]} Nf6
{[%clk 01:21:28]} {[%emt 00:02:47]} 5. Qa4+ {[%clk 01:31:27]} {[%emt 00:00:36]}
Nbd7 {[%clk 01:21:36]} {[%emt 00:00:21]} 6. Qxc4 {[%clk 01:31:49]} {[%emt
00:00:08]} a6 {[%clk 01:21:42]} {[%emt 00:00:24]} 7. Qc2 {[%clk 01:31:12]}
{[%emt 00:01:08]} c5 {[%clk 01:21:44]} {[%emt 00:00:27]} 8. O-O {[%clk
01:31:15]} {[%emt 00:00:27]} Be7 {[%clk 01:21:49]} {[%emt 00:00:25]} 9. d4
{[%clk 01:30:13]} {[%emt 00:01:32]} O-O {[%clk 01:10:20]} {[%emt 00:11:59]} 10.
Rd1 {[%clk 01:29:48]} {[%emt 00:00:54]} Qc7 {[%clk 01:04:23]} {[%emt 00:06:28]}
11. Bf4 {[%clk 01:28:24]} {[%emt 00:01:54]} Bd6 {[%clk 00:58:45]} {[%emt
00:06:08]} 12. Bxd6 {[%clk 01:28:01]} {[%emt 00:00:53]} Qxd6 {[%clk 00:59:06]}
{[%emt 00:00:09]} 13. Na3 {[%clk 01:15:38]} {[%emt 00:12:53]} b5 {[%clk
00:49:31]} {[%emt 00:10:05]} 14. dxc5 {[%clk 01:12:38]} {[%emt 00:03:30]} Qxc5
{[%clk 00:49:45]} {[%emt 00:00:16]} 15. Qxc5 {[%clk 01:12:56]} {[%emt
00:00:12]} Nxc5 {[%clk 00:50:06]} {[%emt 00:00:09]} 16. Rac1 {[%clk 01:13:22]}
{[%emt 00:00:03]} Nce4 {[%clk 00:47:28]} {[%emt 00:03:09]} 17. Ng5 {[%clk
00:54:43]} {[%emt 00:19:10]} Bb7 {[%clk 00:47:11]} {[%emt 00:00:46]} 18. Rd4
{[%clk 00:31:04]} {[%emt 00:24:09]} Rac8 {[%clk 00:40:44]} {[%emt 00:06:58]} 19.
Rc2 {[%clk 00:31:06]} {[%emt 00:00:27]} Rxc2 {[%clk 00:36:46]} {[%emt
00:04:28]} 20. Nxc2 {[%clk 00:31:29]} {[%emt 00:00:07]} Nc5 {[%clk 00:36:47]}
{[%emt 00:00:28]} 21. b4 {[%clk 00:28:00]} {[%emt 00:03:59]} Bxg2 {[%clk
00:35:55]} {[%emt 00:01:23]} 22. Kxg2 {[%clk 00:28:26]} {[%emt 00:00:04]} Nb7
{[%clk 00:31:18]} {[%emt 00:05:07]} 23. Kf3 {[%clk 00:25:36]} {[%emt 00:03:20]}
Rc8 {[%clk 00:30:54]} {[%emt 00:00:54]} 24. Ne3 {[%clk 00:25:37]} {[%emt
00:00:29]} Kf8 {[%clk 00:29:47]} {[%emt 00:01:36]} 25. Ng4 {[%clk 00:19:29]}
{[%emt 00:06:39]} Nxg4 {[%clk 00:28:03]} {[%emt 00:02:13]} 26. Kxg4 {[%clk
00:17:21]} {[%emt 00:02:39]} Ke7 {[%clk 00:12:27]} {[%emt 00:16:06]} 27. Nxf7
{[%clk 00:08:39]} {[%emt 00:09:12]} Kxf7 {[%clk 00:12:45]} {[%emt 00:00:11]} 28.
Rd7+ {[%clk 00:09:07]} {[%emt 00:00:03]} Kf6 {[%clk 00:12:37]} {[%emt
00:00:37]} 29. Rxb7 {[%clk 00:09:32]} {[%emt 00:00:06]} Rc4+ {[%clk 00:12:55]}
{[%emt 00:00:12]} 30. f4 {[%clk 00:09:56]} {[%emt 00:00:06]} Rxb4 {[%clk
00:12:59]} {[%emt 00:00:25]} 31. Rb6 {[%clk 00:10:09]} {[%emt 00:00:18]} Ra4
{[%clk 00:11:49]} {[%emt 00:01:40]} 32. e4 {[%clk 00:10:29]} {[%emt 00:00:10]}
Rxe4 {[%clk 00:04:15]} {[%emt 00:08:04]} 33. Rxa6 {[%clk 00:10:04]} {[%emt
00:00:56]} g6 {[%clk 00:03:44]} {[%emt 00:01:00]} 34. Kf3 {[%clk 00:07:44]}
{[%emt 00:02:49]} Rc4 {[%clk 00:03:09]} {[%emt 00:01:05]} 35. Ra5 {[%clk
00:06:49]} {[%emt 00:01:26]} Rc2 {[%clk 00:02:00]} {[%emt 00:01:39]} 36. g4
{[%clk 00:04:46]} {[%emt 00:02:32]} Rc3+ {[%clk 00:01:31]} {[%emt 00:01:00]} 37.
Ke4 {[%clk 00:04:19]} {[%emt 00:00:58]} Rc4+ {[%clk 00:01:30]} {[%emt
00:00:31]} 38. Ke3 {[%clk 00:04:43]} {[%emt 00:00:05]} Rc3+ {[%clk 00:01:15]}
{[%emt 00:00:45]} 39. Ke4 {[%clk 00:01:59]} {[%emt 00:03:14]} Rc4+ {[%clk
00:01:34]} {[%emt 00:00:11]} 40. Kf3 {[%clk 00:02:21]} {[%emt 00:00:08]} Rc3+
{[%clk 00:01:26]} {[%emt 00:00:38]} 41. Kf2 {[%clk 00:02:17]} {[%emt 00:00:33]}
Rc5 {[%clk 00:17:46]} {[%emt 00:14:10]} 42. Kg3 {[%clk 00:30:36]} {[%emt
00:02:12]} h6 {[%clk 00:17:54]} {[%emt 00:00:22]} 43. h4 {[%clk 00:28:24]}
{[%emt 00:02:42]} Rc3+ {[%clk 00:11:32]} {[%emt 00:06:52]} 44. Kf2 {[%clk
00:28:42]} {[%emt 00:00:11]} Rc2+ {[%clk 00:07:25]} {[%emt 00:04:38]} 45. Ke3
{[%clk 00:28:51]} {[%emt 00:00:21]} Rc3+ {[%clk 00:07:19]} {[%emt 00:00:36]} 46.
Kd2 {[%clk 00:26:31]} {[%emt 00:02:50]} Rc5 {[%clk 00:07:34]} {[%emt 00:00:15]}
47. Ra7 {[%clk 00:21:53]} {[%emt 00:05:08]} g5 {[%clk 00:04:00]} {[%emt
00:04:04]} 48. hxg5+ {[%clk 00:11:08]} {[%emt 00:11:15]} 1/2-1/2

[Event "Masterklassen 2025"]
[Site "Uppsala, Sweden"]
[Date "2025.07.01"]
[Round "4.10"]
[White "Walinder, Lars"]
[Black "Lundberg, David"]
[Result "1-0"]
[TimeControl "90 min for 40 move + 30 min with an increment of 30 sec starting move 1"]
[WhiteTitle "FM"]
[WhiteFideId "1707329"]
[BlackFideId "1707051"]
[WhiteElo "2181"]
[BlackElo "2193"]

1. c4 {[%clk 01:30:53]} {[%emt 00:00:06]} c5 {[%clk 01:20:24]} {[%emt
00:10:37]} 2. Nf3 {[%clk 01:31:07]} {[%emt 00:00:15]} Nc6 {[%clk 01:20:11]}
{[%emt 00:00:44]} 3. d4 {[%clk 01:31:17]} {[%emt 00:00:20]} cxd4 {[%clk
01:20:22]} {[%emt 00:00:19]} 4. Nxd4 {[%clk 01:31:36]} {[%emt 00:00:11]} Nf6
{[%clk 01:20:27]} {[%emt 00:00:24]} 5. Nc3 {[%clk 01:31:30]} {[%emt 00:00:36]}
e6 {[%clk 01:20:49]} {[%emt 00:00:09]} 6. a3 {[%clk 01:31:14]} {[%emt
00:00:46]} Be7 {[%clk 01:21:07]} {[%emt 00:00:12]} 7. e4 {[%clk 01:31:20]}
{[%emt 00:00:23]} O-O {[%clk 01:21:05]} {[%emt 00:00:31]} 8. Nf3 {[%clk
01:30:50]} {[%emt 00:01:01]} b6 {[%clk 01:18:22]} {[%emt 00:03:14]} 9. Be2
{[%clk 01:31:00]} {[%emt 00:00:19]} Bb7 {[%clk 01:18:32]} {[%emt 00:00:21]} 10.
O-O {[%clk 01:30:53]} {[%emt 00:00:36]} Rc8 {[%clk 01:18:26]} {[%emt 00:00:36]}
11. Bg5 {[%clk 01:17:58]} {[%emt 00:13:25]} h6 {[%clk 01:04:47]} {[%emt
00:14:10]} 12. Bh4 {[%clk 01:05:10]} {[%emt 00:13:18]} Nxe4 {[%clk 00:51:45]}
{[%emt 00:13:32]} 13. Nxe4 {[%clk 01:05:08]} {[%emt 00:00:32]} Bxh4 {[%clk
00:52:13]} {[%emt 00:00:02]} 14. Nd6 {[%clk 01:05:15]} {[%emt 00:00:23]} Rb8
{[%clk 00:50:01]} {[%emt 00:02:42]} 15. Nxh4 {[%clk 00:55:19]} {[%emt
00:10:25]} Qxh4 {[%clk 00:50:14]} {[%emt 00:00:18]} 16. Bf3 {[%clk 00:53:59]}
{[%emt 00:01:50]} Ba8 {[%clk 00:45:42]} {[%emt 00:05:01]} 17. Re1 {[%clk
00:42:24]} {[%emt 00:12:05]} Rfd8 {[%clk 00:25:17]} {[%emt 00:20:55]} 18. Rc1
{[%clk 00:38:37]} {[%emt 00:04:18]} Ne7 {[%clk 00:22:01]} {[%emt 00:03:46]} 19.
Bxa8 {[%clk 00:36:25]} {[%emt 00:02:43]} Rxa8 {[%clk 00:22:29]} {[%emt
00:00:01]} 20. Nb7 {[%clk 00:36:31]} {[%emt 00:00:23]} Re8 {[%clk 00:19:30]}
{[%emt 00:03:29]} 21. Qd5 {[%emt 00:02:19]} d6 22. Qxd6 {[%clk 00:34:42]} Rac8
{[%clk 00:19:13]} {[%emt 00:00:48]} 23. Qd7 {[%clk 00:12:07]} Nf5 {[%clk
00:10:21]} {[%emt 00:32:27]} 24. b4 {[%clk 00:09:24]} Qg5 {[%clk 00:09:47]}
{[%emt 00:04:17]} 25. c5 {[%clk 00:07:01]} Qf6 {[%clk 00:06:21]} {[%emt
00:06:48]} 26. Rc3 {[%clk 00:06:13]} bxc5 {[%clk 00:04:12]} {[%emt 00:03:59]}
27. Rd3 {[%clk 00:06:33]} Qb2 {[%clk 00:03:10]} 28. bxc5 {[%clk 00:03:40]} Kh7
{[%clk 00:01:12]} {[%emt 00:05:52]} 29. Red1 {[%clk 00:02:09]} Qb4 {[%emt
00:02:27]} 30. c6 Qb6 {[%clk 00:01:16]} 31. Rc1 {[%clk 00:01:47]} {[%emt
00:00:52]} Qc7 {[%clk 00:01:07]} {[%emt 00:00:39]} 32. Rdd1 {[%clk 00:01:24]}
{[%emt 00:00:53]} h5 {[%clk 00:00:59]} {[%emt 00:00:37]} 33. Qd3 {[%clk
00:01:24]} {[%emt 00:00:30]} Re7 {[%clk 00:00:46]} {[%emt 00:00:44]} 34. h3
{[%clk 00:01:08]} {[%emt 00:00:45]} h4 {[%clk 00:01:09]} {[%emt 00:00:08]} 35.
Qe4 {[%clk 00:01:16]} {[%emt 00:00:22]} Kg8 {[%clk 00:01:22]} {[%emt 00:00:16]}
36. a4 {[%clk 00:00:57]} {[%emt 00:00:50]} Qb6 {[%clk 00:00:58]} {[%emt
00:00:54]} 37. a5 {[%clk 00:00:44]} {[%emt 00:00:43]} Qa6 {[%clk 00:00:35]}
{[%emt 00:00:53]} 38. Rc5 {[%clk 00:00:34]} {[%emt 00:00:40]} Rec7 {[%clk
00:00:41]} {[%emt 00:00:24]} 39. Nd8 {[%clk 00:00:37]} {[%emt 00:00:27]} g6
{[%clk 00:00:44]} {[%emt 00:00:27]} 40. Nxe6 {[%clk 00:00:34]} {[%emt
00:00:33]} fxe6 {[%clk 00:00:59]} {[%emt 00:00:15]} 41. Qxe6+ {[%clk 00:00:55]}
{[%emt 00:00:08]} Kh7 {[%clk 00:00:31]} {[%emt 00:00:59]} 42. Rd7+ {[%clk
00:00:42]} {[%emt 00:00:42]} Kh6 {[%clk 00:00:31]} {[%emt 00:00:31]} 43. Rxf5
{[%clk 00:22:15]} {[%emt 00:08:55]} Rxd7 {[%clk 00:23:10]} {[%emt 00:07:53]} 44.
Qe3+ {[%clk 00:21:42]} {[%emt 00:01:02]} Kh7 {[%clk 00:20:43]} {[%emt
00:02:57]} 45. cxd7 {[%clk 00:21:30]} {[%emt 00:00:42]} gxf5 {[%clk 00:18:08]}
{[%emt 00:03:05]} 46. dxc8=Q {[%clk 00:21:42]} {[%emt 00:00:18]} Qxc8 {[%clk
00:18:31]} {[%emt 00:00:07]} 47. Qxa7+ {[%clk 00:21:54]} {[%emt 00:00:18]} Kg8
{[%clk 00:17:46]} {[%emt 00:01:15]} 48. Qe3 {[%clk 00:19:43]} {[%emt 00:02:41]}
Qc2 {[%clk 00:15:10]} {[%emt 00:03:06]} 49. Qf4 {[%clk 00:10:30]} {[%emt
00:09:43]} Kf7 {[%clk 00:13:25]} {[%emt 00:02:15]} 50. a6 {[%clk 00:08:15]}
{[%emt 00:02:45]} Ke6 {[%clk 00:10:00]} {[%emt 00:03:55]} 51. a7 {[%clk
00:06:10]} {[%emt 00:02:36]} 1-0

[Event "Masterklassen 2025"]
[Site "Uppsala, Sweden"]
[Date "2025.07.01"]
[Round "4.11"]
[White "Sundin, Emanuel"]
[Black "Soppela, Toni"]
[Result "1/2-1/2"]
[TimeControl "90 min for 40 move + 30 min with an increment of 30 sec starting move 1"]
[WhiteFideId "1719173"]
[BlackFideId "1766163"]
[WhiteElo "2117"]
[BlackElo "2090"]

1. e4 {[%clk 01:30:56]} {[%emt 00:00:03]} e5 {[%clk 01:27:45]} {[%emt
00:03:15]} 2. Nf3 {[%clk 01:31:18]} {[%emt 00:00:08]} Nc6 {[%clk 01:28:02]}
{[%emt 00:00:14]} 3. Bc4 {[%clk 01:31:29]} {[%emt 00:00:19]} Bc5 {[%clk
01:27:55]} {[%emt 00:00:37]} 4. c3 {[%clk 01:29:45]} {[%emt 00:02:14]} Nf6
{[%clk 01:28:02]} {[%emt 00:00:23]} 5. d4 {[%clk 01:28:35]} {[%emt 00:01:40]}
exd4 {[%clk 01:28:16]} {[%emt 00:00:15]} 6. e5 {[%clk 01:28:57]} {[%emt
00:00:08]} d5 {[%clk 01:28:15]} {[%emt 00:00:31]} 7. Bb5 {[%clk 01:29:15]}
{[%emt 00:00:13]} Ne4 {[%clk 01:28:15]} {[%emt 00:00:28]} 8. cxd4 {[%clk
01:29:31]} {[%emt 00:00:15]} Bb6 {[%clk 01:28:14]} {[%emt 00:00:30]} 9. Nc3
{[%clk 01:29:41]} {[%emt 00:00:21]} O-O {[%clk 01:28:07]} {[%emt 00:00:37]} 10.
Be3 {[%clk 01:29:49]} {[%emt 00:00:22]} Bg4 {[%clk 01:27:41]} {[%emt 00:00:56]}
11. h3 {[%clk 01:29:51]} {[%emt 00:00:28]} Bh5 {[%clk 01:27:45]} {[%emt
00:00:26]} 12. Qc2 {[%clk 01:30:02]} {[%emt 00:00:19]} Nxc3 {[%clk 01:25:48]}
{[%emt 00:02:28]} 13. bxc3 {[%clk 01:30:09]} {[%emt 00:00:23]} Bg6 {[%clk
01:22:48]} {[%emt 00:03:29]} 14. Bd3 {[%clk 01:26:15]} {[%emt 00:04:24]} Bxd3
{[%clk 01:14:37]} {[%emt 00:08:41]} 15. Qxd3 {[%clk 01:25:01]} {[%emt
00:01:44]} f6 {[%clk 01:08:29]} {[%emt 00:06:38]} 16. exf6 {[%clk 01:20:29]}
{[%emt 00:05:03]} Qxf6 {[%clk 01:07:18]} {[%emt 00:01:41]} 17. O-O {[%clk
01:19:36]} {[%emt 00:01:23]} Rae8 {[%clk 00:56:10]} {[%emt 00:11:36]} 18. a4
{[%clk 01:12:25]} {[%emt 00:07:42]} h6 {[%clk 00:44:24]} {[%emt 00:12:16]} 19.
Kh1 {[%clk 00:55:13]} {[%emt 00:17:42]} Qe6 {[%clk 00:40:30]} {[%emt 00:04:24]}
20. Bd2 {[%clk 00:46:10]} {[%emt 00:09:33]} Qe2 {[%clk 00:37:11]} {[%emt
00:03:49]} 21. Qxe2 {[%clk 00:42:40]} {[%emt 00:04:00]} Rxe2 {[%clk 00:37:38]}
{[%emt 00:00:02]} 22. Rae1 {[%clk 00:31:20]} {[%emt 00:11:51]} Rfe8 {[%clk
00:33:54]} {[%emt 00:04:14]} 23. g4 {[%clk 00:18:38]} {[%emt 00:13:12]} Rxe1
{[%clk 00:32:23]} {[%emt 00:02:01]} 24. Rxe1 {[%clk 00:17:46]} {[%emt
00:01:22]} Rxe1+ {[%clk 00:32:25]} {[%emt 00:00:29]} 25. Bxe1 {[%clk 00:14:22]}
{[%emt 00:03:54]} Kf7 {[%clk 00:32:48]} {[%emt 00:00:06]} 26. Kg2 {[%clk
00:14:47]} {[%emt 00:00:05]} Ke6 {[%clk 00:32:15]} {[%emt 00:01:03]} 1/2-1/2